fUSD/lending_fUSD_20251201
["ID","MTS","AMOUNT","RATE_DAILY","PERIOD"]
[395221566,1764551450681,-150.0,0.00016689,2]
[395221567,1764551450690,-736.0,0.00016691,2]
[395221568,1764551450699,-150.0,0.00016694,2]
[395221569,1764551450708,-198.42113045,0.00016695,2]
[395221570,1764551450718,-276.65524892,0.00016695,2]
[395221571,1764551450727,-642.94,0.00016697,2]
[395221572,1764551450737,-553.64373807,0.00016697,2]
[395221573,1764551450747,-151.0,0.00016697,2]
[395221574,1764551450756,-201.93286099,0.00016697,2]
[395221575,1764551450765,-178.53445128,0.00016697,2]
[395221576,1764551450775,-3000.0,0.00016697,2]
[395221577,1764551450787,-201.93286099,0.00016697,2]
[395221578,1764551450798,-151.0,0.00016697,2]
[395221579,1764551450808,-2996.72,0.000167,2]
[395221580,1764551450818,-150.0,0.00016703,2]
[395221581,1764551450827,-150.0,0.00016707,2]
[395221582,1764551450837,-150.0,0.0001671,2]
[395221583,1764551450847,-150.0,0.00016712,2]
[395221584,1764551450856,-198.42113045,0.00016712,2]
[395221585,1764551450866,-276.65524892,0.00016712,2]
[395221586,1764551450878,-150.0,0.00016712,2]
[395221587,1764551450887,-151.0,0.00016713,2]
[395221588,1764551450896,-150.0,0.00016725,2]
[395221589,1764551450905,-198.42113045,0.00016729,2]
[395221590,1764551450914,-150.0,0.00016729,2]
[395221591,1764551450923,-276.65524892,0.00016729,2]
[395221592,1764551450932,-150.0,0.00016731,2]
[395221593,1764551450941,-150.0,0.00016732,2]
[395221594,1764551450950,-150.0,0.00016733,2]
[395221595,1764551450959,-150.0,0.00016735,2]
[395221596,1764551450968,-150.0,0.00016737,2]
[395221597,1764551450978,-150.0,0.00016744,2]
[395221598,1764551450987,-6146.17544968,0.00016745,2]
[395221599,1764551450997,-198.42113045,0.00016746,2]
[395221600,1764551451007,-276.65524892,0.00016746,2]
[395221601,1764551451016,-150.0,0.00016749,2]
[395221602,1764551451026,-150.0,0.00016753,2]
[395221603,1764551451035,-150.0,0.00016758,2]
[395221604,1764551451043,-150.0,0.00016761,2]
[395221605,1764551451052,-198.42113045,0.00016763,2]
[395221606,1764551451061,-276.65524892,0.00016763,2]
[395221607,1764551451070,-150.0,0.00016767,2]
[395221608,1764551451080,-150.0,0.00016769,2]
[395221609,1764551451089,-150.0,0.00016774,2]
[395221610,1764551451098,-150.0,0.00016774,2]
[395221611,1764551451108,-198.42113045,0.0001678,2]
[395221612,1764551451117,-150.0,0.0001678,2]
[395221613,1764551451126,-276.65524892,0.0001678,2]
[395221614,1764551451135,-150.0,0.00016783,2]
[395221615,1764551451144,-150.0,0.00016785,2]
[395221616,1764551451155,-150.0,0.00016786,2]
[395221617,1764551451165,-150.0,0.00016795,2]
[395221618,1764551451174,-198.42113045,0.00016798,2]
[395221619,1764551451184,-150.0,0.00016798,2]
[395221620,1764551451193,-276.65524892,0.00016798,2]
[395221621,1764551451203,-150.0,0.00016798,2]
[395221622,1764551451212,-1000.0,0.000168,3]
[395221623,1764551451221,-1000.0,0.000168,4]
[395221624,1764551451230,-1000.0,0.000168,2]
[395221625,1764551451239,-150.0,0.00016804,2]
[395221626,1764551451249,-150.0,0.00016809,2]
[395221627,1764551451258,-150.0,0.00016811,2]
[395221628,1764551451267,-150.0,0.00016812,2]
[395221629,1764551451277,-198.42113045,0.00016815,2]
[395221630,1764551451286,-276.65524892,0.00016815,2]
[395221631,1764551451295,-150.0,0.00016816,2]
[395221632,1764551451305,-150.0,0.00016822,2]
[395221633,1764551451314,-4687.31415,0.0001683,2]
[395221634,1764551451323,-198.42113045,0.00016832,2]
[395221635,1764551451332,-150.0,0.00016832,2]
[395221636,1764551451341,-276.65524892,0.00016832,2]
[395221637,1764551451351,-150.0,0.00016832,2]
[395221638,1764551451360,-150.0,0.00016834,2]
[395221639,1764551451369,-150.0,0.00016836,2]
[395221640,1764551451378,-150.0,0.00016838,2]
[395221641,1764551451387,-150.0,0.0001684,2]
[395221642,1764551451397,-198.42113045,0.00016849,2]
[395221643,1764551451408,-276.65524892,0.00016849,2]
[395221644,1764551451418,-150.0,0.00016856,2]
[395221645,1764551451427,-150.0,0.00016858,2]
[395221646,1764551451437,-150.0,0.00016859,2]
[395221647,1764551451446,-150.0,0.0001686,2]
[395221648,1764551451455,-150.0,0.0001686,2]
[395221649,1764551451464,-150.0,0.00016861,2]
[395221650,1764551451473,-200.0,0.00016863,2]
[395221651,1764551451483,-200.0,0.00016864,2]
[395221652,1764551451492,-200.0,0.00016864,2]
[395221653,1764551451501,-200.0,0.00016864,2]
[395221654,1764551451511,-200.0,0.00016864,2]
[395221655,1764551451520,-150.0,0.00016865,2]
[395221656,1764551451529,-198.42113045,0.00016866,2]
[395221657,1764551451538,-276.65524892,0.00016866,2]
[395221658,1764551451547,-150.0,0.00016877,2]
[395221659,1764551451556,-150.0,0.0001688,2]
[395221660,1764551451565,-198.42113045,0.00016883,2]
[395221661,1764551451574,-150.0,0.00016883,2]
[395221662,1764551451583,-276.65524892,0.00016883,2]
[395221663,1764551451592,-150.0,0.00016885,2]
[395221664,1764551451601,-150.0,0.00016886,2]
[395221665,1764551451611,-25000.0,0.00016891,3]
[395221666,1764551451619,-150.0,0.00016892,2]
[395221667,1764551451628,-150.0,0.00016895,2]
[395221668,1764551451637,-480.22367944,0.00016895,2]
[395221669,1764551451646,-4792.06963947,0.00016895,2]
[395221670,1764551451659,-480.22367943,0.00016896,2]
[395221671,1764551451668,-480.22367943,0.00016897,2]
[395221672,1764551451677,-480.22367943,0.00016898,2]
[395221673,1764551451687,-500.0,0.00016899,2]
[395221674,1764551451697,-500.0,0.00016899,2]
[395221675,1764551451707,-500.0,0.00016899,2]
[395221676,1764551451716,-500.0,0.00016899,2]
[395221677,1764551451727,-266.27024218,0.00016899,2]
[395221678,1764551451737,-480.22367943,0.00016899,2]
[395221679,1764551451746,-150.0,0.00016899,2]
[395221680,1764551451755,-5719.94665815,0.000169,2]
[395221681,1764551451765,-10000.0,0.000169,2]
[395221682,1764551451774,-25000.0,0.000169,3]
[395221683,1764551451782,-427.55165138,0.000169,3]
[395221684,1764551451791,-1000.0,0.000169,2]
[395221685,1764551451800,-750.18742908,0.000169,2]
[395221686,1764551451809,-2320.34311975,0.000169,2]
[395221687,1764551451818,-38921.91393748,0.000169,2]
[395221688,1764551451827,-480.22367943,0.000169,2]
[395221689,1764551451835,-2483.39506937,0.000169,2]
[395221690,1764551451845,-11755.0,0.000169,2]
[395221691,1764551451855,-198.42113045,0.00016901,2]
[395221692,1764551451864,-276.65524892,0.00016901,2]
[395221693,1764551451875,-150.0,0.00016901,2]
[395221694,1764551451885,-150.0,0.0001691,2]
[395221695,1764551451894,-150.0,0.00016911,2]
[395221696,1764551451903,-150.0,0.00016913,2]
[395221697,1764551451912,-198.42113045,0.00016918,2]
[395221698,1764551451922,-276.65524892,0.00016918,2]
[395221699,1764551451931,-150.0,0.00016923,2]
[395221700,1764551451940,-150.0,0.00016923,2]
[395221701,1764551451949,-150.0,0.00016932,2]
[395221702,1764551451959,-198.42113045,0.00016935,2]
[395221703,1764551451968,-150.0,0.00016935,2]
[395221704,1764551451978,-276.65524892,0.00016935,2]
[395221705,1764551451986,-150.0,0.00016936,2]
[395221706,1764551451995,-150.0,0.00016936,2]
[395221707,1764551452005,-1372.20674724,0.0001694,2]
[395221708,1764551452015,-150.0,0.00016943,2]
[395221709,1764551452024,-150.0,0.00016944,2]
[395221710,1764551452033,-600.0,0.00016948,2]
[395221711,1764551452042,-150.0,0.0001695,2]
[395221712,1764551452050,-198.42113045,0.00016952,2]
[395221713,1764551452059,-276.65524892,0.00016952,2]
[395221714,1764551452068,-221.0,0.00016953,2]
[395221715,1764551452077,-150.0,0.00016961,2]
[395221716,1764551452085,-500.0,0.00016961,2]
[395221717,1764551452095,-500.0,0.00016961,2]
[395221718,1764551452103,-500.0,0.00016961,2]
[395221719,1764551452113,-500.0,0.00016961,2]
[395221720,1764551452122,-500.0,0.00016961,2]
[395221721,1764551452131,-319.45454394,0.00016961,2]
[395221722,1764551452141,-500.0,0.00016961,2]
[395221723,1764551452150,-500.0,0.00016961,2]
[395221724,1764551452162,-500.0,0.00016961,2]
[395221725,1764551452171,-500.0,0.00016961,2]
[395221726,1764551452180,-150.52756484,0.00016961,2]
[395221727,1764551452190,-500.0,0.00016961,2]
[395221728,1764551452200,-500.0,0.00016961,2]
[395221729,1764551452210,-336.42599218,0.00016961,2]
[395221730,1764551452219,-150.0,0.00016961,2]
[395221731,1764551452228,-150.0,0.00016965,2]
[395221732,1764551452236,-150.0,0.00016968,2]
[395221733,1764551452245,-198.42113045,0.00016969,2]
[395221734,1764551452254,-276.65524892,0.00016969,2]
[395221735,1764551452264,-500.0,0.00016973,2]
[395221736,1764551452273,-295.05852426,0.00016973,2]
[395221737,1764551452282,-500.0,0.00016973,2]
[395221738,1764551452291,-500.0,0.00016973,2]
[395221739,1764551452299,-500.0,0.00016973,2]
[395221740,1764551452308,-500.0,0.00016973,2]
[395221741,1764551452318,-500.0,0.00016973,2]
[395221742,1764551452327,-500.0,0.00016973,2]
[395221743,1764551452336,-500.0,0.00016973,2]
[395221744,1764551452345,-500.0,0.00016973,2]
[395221745,1764551452354,-500.0,0.00016973,2]
[395221746,1764551452364,-502.43033754,0.00016973,2]
[395221747,1764551452373,-500.0,0.00016973,2]
[395221748,1764551452383,-500.0,0.00016973,2]
[395221749,1764551452392,-500.0,0.00016973,2]
[395221750,1764551452401,-500.0,0.00016973,2]
[395221751,1764551452413,-500.0,0.00016973,2]
[395221752,1764551452422,-500.0,0.00016973,2]
[395221753,1764551452431,-162.44041448,0.00016973,2]
[395221754,1764551452441,-500.0,0.00016973,2]
[395221755,1764551452450,-500.0,0.00016973,2]
[395221756,1764551452459,-500.0,0.00016973,2]
[395221757,1764551452469,-500.0,0.00016973,2]
[395221758,1764551452478,-500.0,0.00016973,2]
[395221759,1764551452487,-500.0,0.00016973,2]
[395221760,1764551452496,-500.28924973,0.00016973,2]
[395221761,1764551452506,-150.0,0.00016973,2]
[395221762,1764551452515,-500.0,0.00016973,2]
[395221763,1764551452524,-500.0,0.00016973,2]
[395221764,1764551452533,-150.0,0.00016973,2]
[395221765,1764551452542,-150.0,0.00016973,2]
[395221766,1764551452550,-150.0,0.00016973,2]
[395221767,1764551452559,-150.0,0.00016973,2]
[395221768,1764551452568,-150.0,0.00016973,2]
[395221769,1764551452577,-251.87899084,0.00016973,2]
[395221770,1764551452587,-150.69072968,0.00016973,2]
[395221771,1764551452596,-150.0,0.00016973,2]
[395221772,1764551452605,-150.0,0.00016973,2]
[395221773,1764551452615,-150.0,0.00016973,2]
[395221774,1764551452624,-500.0,0.00016973,2]
[395221775,1764551452634,-500.0,0.00016973,2]
[395221776,1764551452643,-150.0,0.00016973,2]
[395221777,1764551452656,-150.0,0.00016973,2]
[395221778,1764551452665,-500.0,0.00016973,2]
[395221779,1764551452674,-150.0,0.00016973,2]
[395221780,1764551452683,-150.0,0.00016973,2]
[395221781,1764551452694,-150.0,0.00016973,2]
[395221782,1764551452703,-500.0,0.00016973,2]
[395221783,1764551452711,-500.0,0.00016973,2]
[395221784,1764551452722,-150.0,0.00016973,2]
[395221785,1764551452732,-500.0,0.00016973,2]
[395221786,1764551452741,-500.0,0.00016973,2]
[395221787,1764551452750,-150.0,0.00016973,2]
[395221788,1764551452759,-160.73087474,0.00016973,2]
[395221789,1764551452768,-500.0,0.00016973,2]
[395221790,1764551452777,-996.0,0.00016973,2]
[395221791,1764551452786,-500.0,0.00016973,2]
[395221792,1764551452795,-150.0,0.00016973,2]
[395221793,1764551452804,-2000.0,0.00016983,2]
[395221794,1764551452821,-2000.0,0.00016983,2]
[395221795,1764551452832,-2000.0,0.00016983,2]
[395221796,1764551452842,-2000.0,0.00016983,2]
[395221797,1764551452851,-2000.0,0.00016983,2]
[395221798,1764551452860,-2000.0,0.00016983,2]
[395221799,1764551452870,-2000.0,0.00016983,2]
[395221800,1764551452879,-2000.0,0.00016983,2]
[395221801,1764551452889,-1425.646,0.00016983,2]
[395221802,1764551452898,-168.0,0.00016986,2]
[395221803,1764551452911,-151.18990127,0.00016986,2]
[395221804,1764551452921,-198.42113045,0.00016986,2]
[395221805,1764551452930,-227.89828506,0.00016986,2]
[395221806,1764551452939,-150.0,0.00016986,2]
[395221807,1764551452949,-150.0,0.00016986,2]
[395221808,1764551452959,-150.0,0.00016986,2]
[395221809,1764551452968,-276.65524892,0.00016986,2]
[395221810,1764551452978,-150.0,0.00016986,2]
[395221811,1764551452987,-150.0,0.00016986,2]
[395221812,1764551452996,-150.0,0.00016986,2]
[395221813,1764551453005,-150.0,0.00016986,2]
[395221814,1764551453015,-150.0,0.00016986,2]
[395221815,1764551453026,-150.0,0.00016986,2]
[395221816,1764551453036,-150.0,0.00016986,2]
[395221817,1764551453046,-150.0,0.00016986,2]
[395221818,1764551453056,-169.60053652,0.00016986,2]
[395221819,1764551453066,-1000.0,0.00016989,2]
[395221820,1764551453078,-1000.0,0.00016989,2]
[395221821,1764551453087,-1000.0,0.00016989,2]
[395221822,1764551453097,-1000.0,0.00016989,2]
[395221823,1764551453107,-1000.0,0.00016989,2]
[395221824,1764551453121,-1000.0,0.00016989,2]
[395221825,1764551453130,-1000.0,0.00016989,2]
[395221826,1764551453140,-1000.0,0.00016989,2]
[395221827,1764551453150,-1000.0,0.00016989,2]
[395221828,1764551453162,-1000.0,0.00016989,2]
[395221829,1764551453172,-1000.0,0.00016989,2]
[395221830,1764551453182,-1000.0,0.00016989,2]
[395221831,1764551453192,-1000.0,0.00016989,2]
[395221832,1764551453202,-1000.0,0.00016989,2]
[395221833,1764551453212,-1000.0,0.00016989,2]
[395221834,1764551453222,-1000.0,0.00016989,2]
[395221835,1764551453231,-1000.0,0.00016989,2]
[395221836,1764551453242,-182.8798203,0.0001699,2]
[395221837,1764551453251,-151.0,0.00016992,2]
[395221838,1764551453261,-500.0,0.00016994,2]
[395221839,1764551453272,-500.0,0.00016994,2]
[395221840,1764551453282,-173.216967,0.00016994,2]
[395221841,1764551453292,-500.0,0.00016994,2]
[395221842,1764551453302,-500.0,0.00016994,2]
[395221843,1764551453312,-500.0,0.00016994,2]
[395221844,1764551453322,-500.0,0.00016994,2]
[395221845,1764551453331,-500.0,0.00016994,2]
[395221846,1764551453343,-500.0,0.00016994,2]
[395221847,1764551453355,-500.0,0.00016994,2]
[395221848,1764551453365,-178.62833561,0.00016994,2]
[395221849,1764551453612,-500.0,0.00016994,2]
[395221850,1764551453622,-500.0,0.00016994,2]
[395221851,1764551453633,-500.0,0.00016994,2]
[395221852,1764551453643,-529.51849785,0.00016994,2]
[395221853,1764551453660,-2317.0312822,0.00016995,2]
[395221854,1764551453671,-14215.3278852,0.00016995,2]
[395221855,1764551453681,-3042.0812228,0.00016995,2]
[395221856,1764551453693,-3192.0923676,0.00016995,2]
[395221857,1764551453703,-672318.1948693,0.00016995,2]
[395221858,1764551453713,-30797.0009102,0.00016995,2]
[395221859,1764551453724,-151.0,0.00016995,2]
[395221860,1764551453735,-159.766743,0.00016995,2]
[395221861,1764551453745,-276.010178,0.00016995,2]
[395221862,1764551453755,-9576.2771027,0.00016995,2]
[395221863,1764551453766,-150195.0397293,0.00016995,2]
[395221864,1764551453777,-151.0,0.00016995,2]
[395221865,1764551453789,-151.0,0.00016995,2]
[395221866,1764551453799,-151.0,0.00016995,2]
[395221867,1764551453809,-151.0,0.00016995,2]
[395221868,1764551453819,-151.0,0.00016995,2]
[395221869,1764551453828,-151.0,0.00016995,2]
[395221870,1764551453838,-151.0,0.00016995,2]
[395221871,1764551453847,-151.0,0.00016995,2]
[395221872,1764551453857,-528.213927,0.00016995,2]
[395221873,1764551453867,-151.0,0.00016995,2]
[395221874,1764551453882,-528.213927,0.00016995,2]
[395221875,1764551453891,-151.0,0.00016995,2]
[395221876,1764551453902,-151.0,0.00016995,2]
[395221877,1764551453915,-256.077912,0.00016995,2]
[395221878,1764551453925,-359.982911,0.00016995,2]
[395221879,1764551453936,-225.335345,0.00016995,2]
[395221880,1764551453947,-528.213927,0.00016995,2]
[395221881,1764551453958,-359.982911,0.00016995,2]
[395221882,1764551453968,-225.335345,0.00016995,2]
[395221883,1764551453978,-528.213927,0.00016995,2]
[395221884,1764551453989,-225.335345,0.00016995,2]
[395221885,1764551453999,-225.335345,0.00016995,2]
[395221886,1764551454009,-151.0,0.00016995,2]
[395221887,1764551454019,-151.0,0.00016995,2]
[395221888,1764551454029,-359.982911,0.00016995,2]
[395221889,1764551454040,-151.0,0.00016995,2]
[395221890,1764551454049,-151.0,0.00016995,2]
[395221891,1764551454060,-151.0,0.00016995,2]
[395221892,1764551454070,-359.982911,0.00016995,2]
[395221893,1764551454081,-151.0,0.00016995,2]
[395221894,1764551454091,-151.0,0.00016995,2]
[395221895,1764551454101,-905.349262,0.00016995,2]
[395221896,1764551454111,-905.349262,0.00016995,2]
[395221897,1764551454122,-421.34453,0.00016995,2]
[395221898,1764551454133,-905.349262,0.00016995,2]
[395221899,1764551454143,-421.34453,0.00016995,2]
[395221900,1764551454153,-905.349262,0.00016995,2]
[395221901,1764551454165,-421.34453,0.00016995,2]
[395221902,1764551454175,-421.34453,0.00016995,2]
[395221903,1764551454186,-151.0,0.00016995,2]
[395221904,1764551454196,-151.0,0.00016995,2]
[395221905,1764551454206,-2273.414466,0.00016995,2]
[395221906,1764551454215,-151.0,0.00016995,2]
[395221907,1764551454225,-151.0,0.00016995,2]
[395221908,1764551454235,-2273.414466,0.00016995,2]
[395221909,1764551454249,-151.0,0.00016995,2]
[395221910,1764551454259,-151.0,0.00016995,2]
[395221911,1764551454270,-2273.414466,0.00016995,2]
[395221912,1764551454279,-151.0,0.00016995,2]
[395221913,1764551454289,-151.0,0.00016995,2]
[395221914,1764551454299,-151.0,0.00016995,2]
[395221915,1764551454310,-2273.414466,0.00016995,2]
[395221916,1764551454319,-151.0,0.00016995,2]
[395221917,1764551454329,-151.0,0.00016995,2]
[395221918,1764551454339,-151.0,0.00016995,2]
[395221919,1764551454350,-221.337081,0.00016995,2]
[395221920,1764551454360,-221.337081,0.00016995,2]
[395221921,1764551454370,-221.337081,0.00016995,2]
[395221922,1764551454380,-221.337081,0.00016995,2]
[395221923,1764551454390,-2940.695031,0.00016995,2]
[395221924,1764551454400,-2940.695031,0.00016995,2]
[395221925,1764551454412,-2940.695031,0.00016995,2]
[395221926,1764551454422,-2940.695031,0.00016995,2]
[395221927,1764551454434,-151.0,0.00016995,2]
[395221928,1764551454445,-248.67852,0.00016995,2]
[395221929,1764551454455,-248.67852,0.00016995,2]
[395221930,1764551454465,-248.67852,0.00016995,2]
[395221931,1764551454475,-248.67852,0.00016995,2]
[395221932,1764551454485,-151.0,0.00016995,2]
[395221933,1764551454495,-151.0,0.00016995,2]
[395221934,1764551454505,-151.0,0.00016995,2]
[395221935,1764551454515,-281.420244,0.00016995,2]
[395221936,1764551454524,-385.551094,0.00016995,2]
[395221937,1764551454534,-151.0,0.00016995,2]
[395221938,1764551454543,-385.551094,0.00016995,2]
[395221939,1764551454553,-151.0,0.00016995,2]
[395221940,1764551454562,-385.551094,0.00016995,2]
[395221941,1764551454572,-151.0,0.00016995,2]
[395221942,1764551454581,-385.551094,0.00016995,2]
[395221943,1764551454591,-151.0,0.00016995,2]
[395221944,1764551454600,-151.0,0.00016995,2]
[395221945,1764551454610,-151.0,0.00016995,2]
[395221946,1764551454619,-151.0,0.00016995,2]
[395221947,1764551454632,-151.0,0.00016995,2]
[395221948,1764551454642,-151.0,0.00016995,2]
[395221949,1764551454654,-151.0,0.00016995,2]
[395221950,1764551454664,-151.0,0.00016995,2]
[395221951,1764551454674,-377.598197,0.00016995,2]
[395221952,1764551454683,-377.598197,0.00016995,2]
[395221953,1764551454694,-388.066649,0.00016995,2]
[395221954,1764551454704,-377.598197,0.00016995,2]
[395221955,1764551454713,-388.066649,0.00016995,2]
[395221956,1764551454723,-377.598197,0.00016995,2]
[395221957,1764551454735,-388.066649,0.00016995,2]
[395221958,1764551454746,-388.066649,0.00016995,2]
[395221959,1764551454758,-151.0,0.00016997,2]
[395221960,1764551454769,-300.0,0.00016999,2]
[395221961,1764551454779,-500.0,0.00016999,2]
[395221962,1764551454790,-500.0,0.00016999,2]
[395221963,1764551454800,-500.0,0.00016999,2]
[395221964,1764551454809,-500.0,0.00016999,2]
[395221965,1764551454819,-500.0,0.00016999,2]
[395221966,1764551454830,-500.0,0.00016999,2]
[395221967,1764551454840,-500.0,0.00016999,2]
[395221968,1764551454850,-500.0,0.00016999,2]
[395221969,1764551454859,-500.0,0.00016999,2]
[395221970,1764551454869,-500.0,0.00016999,2]
[395221971,1764551454879,-632.7,0.00016999,2]
[395221972,1764551454889,-500.0,0.00016999,2]
[395221973,1764551454898,-500.0,0.00016999,2]
[395221974,1764551454908,-500.0,0.00016999,2]
[395221975,1764551454917,-300.0,0.00016999,2]
[395221976,1764551454927,-300.0,0.00016999,2]
[395221977,1764551454937,-903283.84861797,0.00017,2]
[395221978,1764551456542,-398.22283924,0.00017,2]
[395221979,1764551456554,-407.22196959,0.00017,2]
[395221980,1764551456572,-642.12284043,0.00015529,2]
[395221981,1764551456587,-886.45964858,0.00015529,2]
[395221982,1764551456596,-865.00823583,0.00017,2]
[395221983,1764551456607,-87500.0,0.00017,2]
[395221984,1764551456695,-337.28881944,0.00015609,2]
[395221985,1764551456705,-6506.0,0.00016606,2]
[395221986,1764551456715,-500.0,0.00016973,2]
[395221987,1764551456724,-10628.26992282,0.00017,2]
[395221988,1764551456739,-8739.34712307,0.00017,2]
[395221989,1764551456750,-802.74421787,0.00017,2]
[395221990,1764551456761,-489.42939973,0.00017,2]
[395221991,1764551457082,-170.01,0.00015808,2]
[395221992,1764551457091,-231.4044,0.00015808,2]
[395221993,1764551457193,-56.37644583,0.00015808,2]
[395221994,1764551457205,-67.97915417,0.00015808,2]
[395221995,1764551457215,-1528.58248901,0.00015986,2]
[395221996,1764551457224,-163.9,0.0001644,2]
[395221997,1764551457233,-163.9,0.0001644,2]
[395221998,1764551457243,-150.0,0.00016973,2]
[395221999,1764551457252,-150.0,0.00016973,2]
[395222000,1764551457262,-4803.51523458,0.00017,2]
[395222001,1764551457273,-621.329991,0.00017,2]
[395222002,1764551457472,-172.74101024,0.00013725,2]
[395222003,1764551457481,-11954.38188916,0.00017,2]
[395222004,1764551457492,-2852.85,0.00017,2]
[395222005,1764551457504,-4359.355,0.00017,2]
[395222006,1764551457521,-151.0,0.00016995,2]
[395222007,1764551457530,-746.97985785,0.00017,2]
[395222008,1764551457541,-288.51478129,0.00017,2]
[395222009,1764551457552,-8715.9634974,0.00017,2]
[395222441,1764551564759,500.0,0.00022,30]
[395222507,1764552567143,-150.0,0.00013071,2]
[395222508,1764552567164,-250.0,0.00013113,2]
[395222509,1764552567184,-500.0,0.00013154,2]
[395222510,1764552567204,-250.0,0.00013405,2]
[395222511,1764552567223,-200.0,0.00013571,2]
[395222512,1764552567244,-900.633862,0.00013606,2]
[395222513,1764552567265,-830.0,0.00013624,2]
[395222514,1764552567290,-500.0,0.00013625,2]
[395222515,1764552567312,-419.34420245,0.00013625,2]
[395222516,1764552567334,-300.0,0.00013625,2]
[395222517,1764552567354,-984.96769955,0.00013625,2]
[395222532,1764552632180,-176.0,0.00013598,2]
[395222533,1764552632189,-300.0,0.00013598,2]
[395222534,1764552632199,-83.2491887,0.00013598,2]
[395222535,1764552632211,-216.7508113,0.00013598,2]
[395222536,1764552632221,-1200.0,0.00013598,2]
[395222537,1764552632231,-11893.97497035,0.00013599,2]
[395222538,1764552632240,-393.57037607,0.00013618,2]
[395222539,1764552632250,-150.0,0.00013625,2]
[395222540,1764552632259,-500.0,0.00013625,2]
[395222541,1764552632269,-261.41358947,0.00013625,2]
[395222542,1764552632278,-165.3240376,0.00013625,2]
[395222543,1764552632288,-414.17298067,0.00013625,2]
[395222544,1764552632301,-500.0,0.00013625,2]
[395222545,1764552632311,-493.15685107,0.00013626,2]
[395222546,1764552632321,-1643.52,0.00013626,2]
[395222547,1764552632330,-235.2993,0.00013626,2]
[395222548,1764552632340,-280.8511,0.00013626,2]
[395222549,1764552632350,-1000.0,0.00013626,2]
[395222550,1764552632360,-14423.5769,0.00013626,2]
[395222551,1764552632369,-2500.0,0.00013626,2]
[395222552,1764552632379,-2671.15751967,0.00013626,2]
[395222553,1764552632390,-1454.2555863,0.00013626,2]
[395222554,1764552632412,-698.84280766,0.00013626,2]
[395222555,1764552632424,-1053.03409589,0.00013626,2]
[395222556,1764552632435,-944.1343704,0.00013626,2]
[395222557,1764552632477,-781.466576,0.00013626,2]
[395222558,1764552632488,-531.69569396,0.00013626,2]
[395222559,1764552632500,-357.41173712,0.00013626,2]
[395222560,1764552632511,-544.02,0.00013626,2]
[395222561,1764552632522,-715.39403671,0.00013626,2]
[395222580,1764552638434,-750248.58757629,0.00013626,2]
[395222581,1764552638444,-162.771,0.00013699,2]
[395222582,1764552638454,-200.0,0.00013699,2]
[395222583,1764552638463,-232.07,0.00013699,2]
[395222584,1764552638472,-2450.526,0.00013699,2]
[395222585,1764552638481,-500.0,0.00013718,2]
[395222586,1764552638490,-200.0,0.00013718,2]
[395222587,1764552638499,-500.0,0.00013718,2]
[395222588,1764552638508,-500.0,0.00013718,2]
[395222589,1764552638517,-500.0,0.00013718,2]
[395222590,1764552638527,-500.0,0.00013718,2]
[395222591,1764552638535,-500.0,0.00013718,2]
[395222592,1764552638545,-500.0,0.00013718,2]
[395222593,1764552638554,-500.0,0.00013718,2]